bitfinex/quotes_BTCUSD_20260104
["timestamp","ask_amount","ask_price","bid_price","bid_amount"]
[1767485828145,0.0109601,91240.0,91235.0,0.0109607]
[1767485828336,0.01096058,91236.0,91232.0,0.01096106]
[1767485828543,0.01096058,91236.0,91231.0,0.01106891]
[1767485828744,0.01096118,91231.0,91226.0,0.05]
[1767485828948,0.01096034,91238.0,91231.0,0.00089131]
[1767485829286,0.01095998,91241.0,91235.0,0.0109607]
[1767485829492,0.13118338,91239.0,91235.0,0.0109607]
[1767485829696,0.0497264,91249.0,91234.0,0.05480413]
[1767485829697,0.01095794,91258.0,91248.0,0.01095914]
[1767485829909,0.0498778,91266.0,91248.0,0.06575479]
[1767485829910,0.13118338,91255.0,91248.0,0.06575479]
[1767485830118,0.05478902,91260.0,91253.0,0.01095854]
[1767485830119,0.01095782,91259.0,91253.0,0.01095854]
[1767485830376,0.08802465,91263.0,91253.0,0.01023222]
[1767485830517,0.0109577,91260.0,91253.0,0.01023222]
[1767485830722,0.01095782,91259.0,91254.0,0.01095842]
[1767485830926,0.000108,91254.0,91250.0,0.0109589]
[1767485831135,0.0657473,91259.0,91247.0,0.05479621]
[1767485831136,0.01095854,91253.0,91247.0,0.01095926]
[1767485831346,0.1859739,91257.0,91237.0,0.05480193]
[1767485831347,0.01095938,91246.0,91237.0,0.05480193]
[1767485831546,0.01095938,91246.0,91239.0,0.01096022]
[1767485831547,0.01095962,91244.0,91239.0,0.01096022]
[1767485831783,0.01095974,91243.0,91237.0,0.03324046]
[1767485831965,0.000108,91239.0,91229.0,0.01096142]
[1767485832164,0.05480172,91238.0,91230.0,0.0332413]
[1767485832368,0.0548032,91236.0,91227.0,0.01096166]
[1767485832567,0.01096082,91234.0,91229.0,0.01096142]
[1767485832852,0.01096034,91238.0,91232.0,0.01096106]
[1767485833083,0.01096022,91239.0,91232.0,0.01096106]
[1767485833287,0.01096022,91239.0,91230.0,0.0109613]
[1767485833485,0.01096022,91239.0,91234.0,0.01096082]
[1767485833652,0.0109601,91240.0,91235.0,0.0109607]
[1767485833851,0.0109601,91240.0,91234.0,0.01096082]
[1767485834054,0.01095806,91257.0,91250.0,0.0109589]
[1767485834420,0.01095842,91254.0,91248.0,0.01095914]
[1767485834582,0.01095734,91263.0,91257.0,0.01095806]
[1767485834935,0.01106541,91260.0,91253.0,0.01095854]
[1767485835168,0.00010771,91260.0,91258.0,0.05478971]
[1767485835354,0.01110838,91266.0,91260.0,0.00089129]
[1767485835511,0.01095722,91264.0,91259.0,0.01095782]
[1767485835717,0.01095722,91264.0,91257.0,0.01095806]
[1767485835718,0.01095734,91263.0,91257.0,0.01095806]
[1767485835922,0.0109571,91265.0,91261.0,0.01095758]
[1767485836147,0.0001514,91266.0,91262.0,0.05478731]
[1767485836349,0.01095614,91273.0,91267.0,0.01095686]
[1767485836516,0.01095614,91273.0,91268.0,0.01080374]
[1767485836716,0.01095578,91276.0,91264.0,0.01095722]
[1767485836933,0.0497264,91272.0,91267.0,0.05478411]
[1767485837187,0.01095614,91273.0,91269.0,0.01095662]
[1767485837356,0.01095554,91278.0,91272.0,0.05478115]
[1767485837556,0.06068206,91277.0,91272.0,0.01095626]
[1767485837756,0.0497264,91277.0,91272.0,0.05478109]
[1767485837957,0.0497264,91277.0,91274.0,0.01095602]
[1767485839065,0.0109559,91275.0,91271.0,0.01095638]
[1767485839244,0.06068206,91277.0,91270.0,0.0109565]
[1767485839448,0.0497264,91272.0,91269.0,0.01095662]
[1767485839628,0.0497264,91272.0,91268.0,0.01095674]
[1767485839828,0.0497264,91272.0,91269.0,0.01095662]
[1767485840027,0.08797181,91280.0,91271.0,0.05478191]
[1767485840293,0.0497264,91277.0,91271.0,0.05478191]
[1767485840583,0.0497264,91277.0,91272.0,0.01095626]
[1767485840780,0.01095566,91277.0,91270.0,0.0109565]
[1767485841030,0.0109559,91275.0,91270.0,0.0109565]
[1767485841484,0.000999,91270.0,91269.0,0.01095662]
[1767485841707,0.0654321,91277.0,91261.0,0.02224]
[1767485841708,0.01095722,91264.0,91261.0,0.02224]
[1767485841890,0.04976648,91279.0,91250.0,0.21917724]
[1767485841891,0.0657463,91260.0,91254.0,0.01095842]
[1767485842106,0.01095734,91263.0,91258.0,0.01095794]
[1767485842242,0.06573095,91282.0,91264.0,0.04687198]
[1767485842449,0.01095446,91287.0,91278.0,0.05477771]
[1767485842682,0.01095434,91288.0,91283.0,0.01095494]
[1767485842879,0.02224,91293.0,91283.0,0.01095494]
[1767485842880,0.01095398,91291.0,91283.0,0.0657295]
[1767485843086,0.01095422,91289.0,91283.0,0.01095494]
[1767485843435,0.01185394,91283.0,91278.0,0.05782751]
[1767485843743,0.01185394,91283.0,91276.0,0.02224]
[1767485843744,0.00035895,91283.0,91279.0,0.04687197]
[1767485843925,0.00035895,91283.0,91277.0,0.10165017]
[1767485844132,0.00035895,91283.0,91279.0,0.01095542]
[1767485844353,0.21907996,91291.0,91279.0,0.01095542]
[1767485844354,0.01095278,91301.0,91290.0,0.0109541]
[1767485844550,7.64e-06,91301.0,91300.0,0.0109529]
[1767485844683,0.000899,91300.0,91298.0,0.06571885]
[1767485844884,0.000899,91300.0,91296.0,0.01095338]
[1767485845197,0.000899,91300.0,91297.0,0.01095326]
[1767485845419,0.01096042,91301.0,91291.0,0.01095398]
[1767485845623,0.01095326,91297.0,91292.0,0.04687197]
[1767485845822,0.01095326,91297.0,91289.0,0.01095422]
[1767485845823,0.01095362,91294.0,91289.0,0.04687197]
[1767485846025,0.01095458,91286.0,91285.0,0.02224]
[1767485846203,0.01095494,91283.0,91278.0,0.01095554]
[1767485846402,0.01095422,91289.0,91285.0,0.0109547]
[1767485846610,0.0109541,91290.0,91285.0,0.0109547]
[1767485846812,7.64e-06,91301.0,91292.0,0.01095386]
[1767485847009,7.64e-06,91301.0,91296.0,0.05476691]
[1767485847196,0.0109529,91300.0,91296.0,0.04687197]
[1767485847402,0.01095302,91299.0,91296.0,0.04687197]
[1767485847595,0.01090528,91299.0,91296.0,0.04687197]
[1767485847795,0.01096042,91301.0,91295.0,0.0109535]
[1767485848054,0.01095314,91298.0,91293.0,0.01095374]
[1767485848198,0.01095434,91288.0,91282.0,0.01477583]
[1767485848404,0.01095446,91287.0,91282.0,0.02573089]
[1767485848645,0.01095446,91287.0,91281.0,0.02224]
[1767485848646,0.01095506,91282.0,91281.0,0.02224]
[1767485848853,0.01095494,91283.0,91273.0,0.05478071]
[1767485849003,0.0109559,91275.0,91270.0,0.0109565]
[1767485849202,0.01095482,91284.0,91275.0,0.000899]
[1767485849489,0.0109553,91280.0,91275.0,0.0118549]
[1767485849681,0.0109553,91280.0,91275.0,0.012512]
[1767485849823,0.0109553,91280.0,91275.0,0.011613]
[1767485850044,0.01095506,91282.0,91277.0,0.01095566]
[1767485850265,0.01095494,91283.0,91277.0,0.01095566]
[1767485850266,0.01095482,91284.0,91278.0,0.01095554]
[1767485850656,0.01095458,91286.0,91284.0,0.000899]
[1767485850858,0.0546863,91283.0,91277.0,0.01095566]
[1767485851064,0.01095506,91282.0,91277.0,0.01095566]
[1767485851243,0.01095518,91281.0,91274.0,0.06573567]
[1767485851446,0.01095518,91281.0,91276.0,0.01095578]
[1767485851659,0.01095506,91282.0,91261.0,0.0455231]
[1767485851660,0.01095626,91272.0,91266.0,0.01095698]
[1767485852030,0.05478131,91272.0,91265.0,0.0109571]
[1767485852198,0.05478131,91272.0,91267.0,0.03319686]
[1767485852199,0.01095626,91272.0,91267.0,0.03319686]
[1767485852566,0.01095614,91273.0,91268.0,0.01095674]
[1767485852873,0.01095638,91271.0,91268.0,0.00035895]
[1767485853082,0.0109559,91275.0,91271.0,0.000899]
[1767485853613,0.0109559,91275.0,91271.0,0.01095638]
[1767485853840,0.01095602,91274.0,91269.0,0.02224]
[1767485854074,0.0001,91269.0,91268.0,0.00035895]
[1767485854259,0.05478251,91270.0,91268.0,0.02259895]
[1767485854759,0.01095638,91271.0,91268.0,0.02259895]
[1767485854967,0.0657384,91271.0,91268.0,0.02249895]
[1767485855971,0.0657384,91271.0,91269.0,0.04749562]
[1767485856294,0.01095674,91268.0,91260.0,0.02224]
[1767485856496,0.01095722,91264.0,91260.0,0.02234]
[1767485856694,0.01095722,91264.0,91254.0,0.01095842]
[1767485856695,0.01095746,91262.0,91254.0,0.05479211]
[1767485856853,0.01095746,91262.0,91256.0,0.01095818]
[1767485856854,0.0108672,91261.0,91256.0,0.01095818]
[1767485857034,0.05478413,91268.0,91257.0,0.05479031]
[1767485857235,0.01095722,91264.0,91261.0,0.000999]
[1767485857475,0.01095734,91263.0,91257.0,0.01095806]
[1767485857677,0.01095698,91266.0,91260.0,0.0109577]
[1767485857678,0.0109571,91265.0,91260.0,0.0109577]
[1767485857995,0.01095722,91264.0,91260.0,0.0109577]
[1767485858157,0.01095758,91261.0,91253.0,0.0001514]
[1767485858358,0.01095734,91263.0,91256.0,0.05479078]
[1767485858562,0.05478475,91267.0,91253.0,0.01110994]
[1767485858563,0.01095674,91268.0,91262.0,0.01095746]
[1767485858900,0.01095674,91268.0,91261.0,0.00091859]
[1767485858901,0.0109571,91265.0,91261.0,0.01187617]
[1767485859131,0.0109583,91255.0,91252.0,0.00644713]
[1767485859336,0.0109577,91260.0,91250.0,0.0109589]
[1767485859537,0.0109577,91260.0,91250.0,0.01106661]
[1767485859811,0.0109577,91260.0,91254.0,0.01095842]
[1767485860174,0.21913115,91270.0,91267.0,0.04749562]
[1767485860175,0.06573923,91270.0,91267.0,0.04749562]
[1767485860372,8e-05,91267.0,91261.0,0.04749562]
[1767485860596,0.01095662,91269.0,91258.0,0.01095794]
[1767485860772,0.06574312,91265.0,91260.0,0.0109577]
[1767485861110,0.01095722,91264.0,91259.0,0.01095782]
[1767485861454,0.05989479,91264.0,91258.0,0.06574713]
[1767485861652,0.01095722,91264.0,91257.0,0.0657483]
[1767485861855,0.01095734,91263.0,91257.0,0.0657483]
[1767485862017,0.01095722,91264.0,91260.0,0.0109577]
[1767485862200,0.01095722,91264.0,91255.0,0.0109583]
[1767485862201,0.01095614,91273.0,91256.0,0.21916138]
[1767485862399,0.01095578,91276.0,91264.0,0.000999]
[1767485862626,0.02224,91281.0,91274.0,0.01095602]
[1767485862807,0.01095458,91286.0,91281.0,0.01095518]
[1767485863320,0.0109547,91285.0,91280.0,0.0109553]
[1767485863487,4e-07,91284.0,91280.0,0.0109553]
[1767485863891,0.01095554,91278.0,91274.0,0.01095602]
[1767485864095,0.0111063,91280.0,91275.0,0.0109559]
[1767485864362,0.0109553,91280.0,91275.0,0.0109559]
[1767485864492,0.05478205,91271.0,91266.0,0.02224]
[1767485864691,0.01095662,91269.0,91266.0,0.00172594]
[1767485864896,0.01095662,91269.0,91266.0,1e-08]
[1767485865115,0.01095638,91271.0,91267.0,0.01095686]
[1767485865326,0.0109565,91270.0,91266.0,0.01095698]
[1767485865515,0.01095686,91267.0,91260.0,0.08798599]
[1767485866352,0.0109571,91265.0,91261.0,0.01095758]
[1767485866528,0.01095686,91267.0,91262.0,0.01095746]
[1767485866737,0.01095686,91267.0,91262.0,0.04749562]
[1767485866939,0.05478431,91267.0,91261.0,0.04749562]
[1767485867139,0.15342338,91278.0,91261.0,0.01095758]
[1767485867308,0.01095566,91277.0,91268.0,0.01095674]
[1767485867513,0.01095494,91283.0,91277.0,0.01095566]
[1767485867729,0.01573105,91282.0,91276.0,0.01095578]
[1767485867930,0.06573011,91283.0,91277.0,0.01095566]
[1767485868130,0.06573011,91283.0,91278.0,0.01095554]
[1767485868553,0.01095458,91286.0,91279.0,0.06573253]
[1767485868727,0.01095434,91288.0,91281.0,0.06573106]
[1767485868936,0.01095458,91286.0,91281.0,0.06573106]
[1767485869141,0.01095434,91288.0,91281.0,0.06573106]
[1767485869602,0.0109547,91285.0,91281.0,0.01095518]
[1767485869866,0.01095446,91287.0,91281.0,0.01095518]
[1767485870032,0.0109547,91285.0,91281.0,0.01095518]
[1767485870234,0.05477651,91280.0,91268.0,0.02224]
[1767485870718,0.0109559,91275.0,91270.0,0.0109565]
[1767485870917,0.01086746,91275.0,91270.0,0.0109565]
[1767485871340,0.01095578,91276.0,91271.0,0.01095638]
[1767485871575,0.01095578,91276.0,91270.0,0.0109565]
[1767485871576,0.0109559,91275.0,91270.0,0.0109565]
[1767485871817,0.01095518,91281.0,91216.0,0.09776364]
[1767485871818,0.05478436,91267.0,91259.0,0.01095782]
[1767485871987,0.01095686,91267.0,91264.0,0.02224]
[1767485872330,0.0109565,91270.0,91264.0,0.03319722]
[1767485872531,0.01095638,91271.0,91267.0,0.01095686]
[1767485872731,0.01095674,91268.0,91263.0,0.01095734]
[1767485872952,0.01095698,91266.0,91261.0,0.01095758]
[1767485873149,0.06574103,91268.0,91263.0,0.01095734]
[1767485873557,0.01095698,91266.0,91262.0,0.01095746]
[1767485873978,0.01086854,91266.0,91262.0,0.01095746]
[1767485874186,0.0109565,91270.0,91263.0,0.01095734]
[1767485874619,0.0109565,91270.0,91266.0,0.01095698]
[1767485875352,0.01095626,91272.0,91268.0,0.01095674]
[1767485875557,0.01095518,91281.0,91276.0,0.01095578]
[1767485875695,0.01095554,91278.0,91274.0,0.01095602]
[1767485876032,0.01095518,91281.0,91276.0,0.01095578]
[1767485876234,0.0109553,91280.0,91276.0,0.01095578]
[1767485876444,0.01095518,91281.0,91277.0,0.01095566]
[1767485876783,0.01095494,91283.0,91278.0,0.01095554]
[1767485876990,0.01095494,91283.0,91279.0,0.01095542]
[1767485877487,0.03319494,91283.0,91279.0,0.01095542]
[1767485877700,0.021241,91283.0,91281.0,0.05477591]
[1767485878354,0.00035872,91284.0,91281.0,0.06573109]
[1767485878558,0.00035872,91284.0,91281.0,0.01095518]
[1767485878901,0.00035872,91284.0,91281.0,0.00995618]
[1767485879459,0.00035872,91284.0,91281.0,0.06473163]
[1767485879852,0.00035872,91284.0,91283.0,0.05477471]
[1767485880302,0.00035872,91284.0,91281.0,0.06473163]
[1767485880515,0.00035872,91284.0,91281.0,0.06473183]
[1767485880665,0.00035872,91284.0,91281.0,0.00995618]
[1767485881074,7.2e-07,91284.0,91282.0,0.05477531]
[1767485881274,7.2e-07,91284.0,91280.0,0.06573136]
[1767485881617,7.2e-07,91284.0,91254.0,0.01095842]
[1767485881618,0.01095758,91261.0,91254.0,0.01095842]
[1767485881797,0.0109577,91260.0,91256.0,0.03319818]
[1767485881969,0.05479024,91258.0,91249.0,0.01095902]
[1767485882174,0.01095782,91259.0,91252.0,0.0657517]
[1767485882374,0.01095806,91257.0,91252.0,0.01095866]
[1767485882712,0.01095806,91257.0,91253.0,0.01100954]
[1767485882870,0.01095782,91259.0,91255.0,0.0109583]
[1767485883297,0.0109577,91260.0,91255.0,0.0109583]
[1767485883476,0.01095758,91261.0,91256.0,0.01095818]
[1767485883679,0.0109577,91260.0,91256.0,0.01095818]
[1767485884296,0.01095758,91261.0,91257.0,0.01095806]
[1767485884610,0.01095734,91263.0,91258.0,0.01095794]
[1767485884811,0.01095758,91261.0,91257.0,0.01095806]
[1767485885274,0.01095758,91261.0,91256.0,0.01095818]
[1767485885275,0.04784986,91260.0,91256.0,0.01095818]
[1767485885480,0.01095758,91261.0,91256.0,0.01095818]
[1767485885684,0.01095698,91266.0,91256.0,0.01095818]
[1767485885907,0.01095662,91269.0,91262.0,0.01095746]
[1767485886168,0.06574045,91268.0,91263.0,0.01095734]
[1767485886292,0.01095674,91268.0,91263.0,0.01095734]
[1767485886482,0.01095686,91267.0,91262.0,0.01095746]
[1767485886687,0.05880612,91272.0,91267.0,0.01195586]
[1767485886891,0.01095626,91272.0,91267.0,0.01095686]
[1767485887311,0.01095674,91268.0,91262.0,0.01095746]
[1767485887492,0.01095674,91268.0,91261.0,0.01095758]
[1767485887493,0.0109571,91265.0,91261.0,0.01095758]
[1767485887710,0.01095674,91268.0,91263.0,0.01095734]
[1767485887919,0.01095674,91268.0,91265.0,0.000999]
[1767485888120,0.01095674,91268.0,91263.0,0.01095734]
[1767485889098,0.01095674,91268.0,91264.0,0.01095722]
[1767485889302,0.01095662,91269.0,91265.0,0.0109571]
[1767485889481,0.01095614,91273.0,91269.0,0.010999]
[1767485889646,0.0109559,91275.0,91270.0,0.0109565]
[1767485889846,0.03315602,91274.0,91270.0,0.0109565]
[1767485890373,0.01095626,91272.0,91268.0,0.01095674]
[1767485890529,0.01095638,91271.0,91267.0,0.01095686]
[1767485890954,0.01095626,91272.0,91267.0,0.01095686]
[1767485891159,0.08793624,91274.0,91262.0,0.01095746]
[1767485891160,0.01095638,91271.0,91262.0,0.01095746]
[1767485891360,0.0657373,91273.0,91268.0,0.01095674]
[1767485891515,0.01095614,91273.0,91269.0,0.01095662]
[1767485891933,0.0222,91274.0,91269.0,0.06573972]
[1767485892189,0.0222,91279.0,91275.0,0.0109559]
[1767485892491,0.01095554,91278.0,91274.0,0.02095602]
[1767485892692,0.03315542,91279.0,91276.0,0.01095578]
[1767485892693,0.0222,91279.0,91276.0,0.01095578]
[1767485892905,0.0222,91279.0,91276.0,0.00896965]
[1767485893286,0.03315542,91279.0,91274.0,0.01095602]
[1767485893654,0.0222,91279.0,91274.0,0.01095602]
[1767485893896,0.03315542,91279.0,91275.0,0.0109559]
[1767485894470,0.0222,91279.0,91275.0,0.0109559]
[1767485894671,0.01095566,91277.0,91273.0,0.01095614]
[1767485895057,0.07697728,91279.0,91274.0,0.01095602]
[1767485895058,0.0222,91279.0,91274.0,0.01095602]
[1767485895257,0.07004986,91279.0,91274.0,0.01095602]
[1767485895474,0.07004986,91279.0,91276.0,0.01095578]
[1767485895681,0.08100528,91279.0,91275.0,0.0109559]
[1767485897262,0.0109559,91275.0,91268.0,0.01095674]
[1767485897543,0.13118338,91273.0,91252.0,0.01095866]
[1767485897702,0.04784986,91258.0,91253.0,0.0222]
[1767485898058,0.05479504,91250.0,91245.0,0.0109595]
[1767485898243,0.04784986,91250.0,91247.0,0.01095926]
[1767485898442,0.04784986,91250.0,91246.0,0.01095938]
[1767485898443,0.03685086,91250.0,91246.0,0.01095938]
[1767485898646,0.01095878,91251.0,91245.0,0.06575664]
[1767485898847,0.01095878,91251.0,91246.0,0.01095938]
[1767485898848,0.06575321,91251.0,91246.0,0.01095938]
[1767485899050,0.01095866,91252.0,91247.0,0.01095926]
[1767485899282,0.00565324,91251.0,91247.0,0.01131726]
[1767485899479,0.01095854,91253.0,91247.0,0.01131726]
[1767485899641,0.39819192,91259.0,91244.0,0.0222]
[1767485899642,0.01195826,91247.0,91244.0,0.0222]
[1767485899829,0.02195826,91247.0,91244.0,0.02230771]
[1767485900191,0.02095926,91247.0,91244.0,0.02230771]
[1767485900391,0.07575612,91247.0,91244.0,0.00010771]
[1767485900596,0.01,91247.0,91244.0,0.00010771]
[1767485900796,0.02095926,91247.0,91244.0,0.00010771]
[1767485901188,0.05479752,91245.0,91244.0,7.1e-07]
[1767485901414,0.04351138,91245.0,91244.0,7.1e-07]
[1767485901848,0.05880984,91241.0,91234.0,0.06576461]
[1767485902032,0.01095998,91241.0,91234.0,0.04700747]
[1767485902237,0.01096046,91237.0,91232.0,0.05796853]
[1767485902591,0.00696469,91237.0,91232.0,0.01096106]
[1767485902788,0.01096058,91236.0,91230.0,0.04700747]
[1767485903242,0.05480593,91231.0,91229.0,0.000103]
[1767485903443,0.01096106,91232.0,91229.0,0.000103]
[1767485903444,0.06576692,91232.0,91229.0,0.000103]
[1767485903763,0.01096106,91232.0,91229.0,0.000103]
[1767485904320,0.05480593,91231.0,91229.0,0.000103]
[1767485904520,0.05480593,91231.0,91219.0,0.01096262]
[1767485904521,0.01096154,91228.0,91223.0,0.01096214]
[1767485904724,0.01096118,91231.0,91226.0,0.01096178]
[1767485905685,0.0109613,91230.0,91226.0,0.01096178]
[1767485905906,0.01096142,91229.0,91225.0,0.0109619]
[1767485906121,0.0109613,91230.0,91226.0,0.01096178]
[1767485906282,0.0222,91235.0,91230.0,0.000103]
[1767485906487,0.01096094,91233.0,91230.0,0.010103]
[1767485906692,0.01096082,91234.0,91230.0,0.01]
[1767485907287,0.01087042,91234.0,91230.0,0.01]
[1767485907616,0.01096094,91233.0,91230.0,0.01]
[1767485907811,0.01096094,91233.0,91229.0,0.01096142]
[1767485908017,0.01078001,91234.0,91230.0,0.0109613]
[1767485908215,0.04784986,91234.0,91229.0,0.03082829]
[1767485908419,0.0222,91235.0,91234.0,0.00973954]
[1767485908639,0.01096034,91238.0,91234.0,0.00973954]
[1767485908640,0.01096046,91237.0,91234.0,0.00973954]
[1767485908816,0.01095854,91253.0,91247.0,0.01095926]
[1767485909019,0.03315842,91254.0,91251.0,0.04700747]
[1767485909329,0.0222,91254.0,91251.0,0.04611147]
[1767485909672,0.01095722,91264.0,91259.0,0.04700747]
[1767485909873,0.0222,91268.0,91261.0,0.04638082]
[1767485910011,0.0108565,91270.0,91264.0,0.000999]
[1767485910213,0.01095686,91267.0,91264.0,0.000999]
[1767485910435,0.0109571,91265.0,91258.0,0.01095794]
[1767485910636,0.0109571,91265.0,91259.0,0.06574693]
[1767485910854,0.0109571,91265.0,91258.0,0.01095794]
[1767485910855,0.06574341,91264.0,91258.0,0.01095794]
[1767485911057,0.06574341,91264.0,91255.0,0.05479148]
[1767485911058,0.01095758,91261.0,91255.0,0.05479148]
[1767485911256,0.05662647,91260.0,91255.0,0.01574966]
[1767485911535,0.01095722,91264.0,91257.0,0.04655762]
[1767485911810,0.0549256,91274.0,91250.0,0.04972633]
[1767485912000,0.0549256,91274.0,91263.0,0.06068367]
[1767485912001,0.01095662,91269.0,91263.0,0.06068367]
[1767485912162,0.0001454,91274.0,91263.0,0.06068367]
[1767485912163,0.0001454,91274.0,91264.0,0.01095722]
[1767485912363,0.0109565,91270.0,91265.0,0.06068343]
[1767485912708,0.0119561,91265.0,91261.0,0.04972633]
[1767485912830,0.010999,91265.0,91262.0,0.06068379]
[1767485913035,0.01095698,91266.0,91262.0,0.06068379]
[1767485913282,0.04618462,91264.0,91236.0,0.21921115]
[1767485913455,0.01095746,91262.0,91256.0,0.05479083]
[1767485913657,0.0109577,91260.0,91253.0,0.0222]
[1767485913859,0.01095746,91262.0,91257.0,0.01095806]
[1767485914102,0.01095758,91261.0,91257.0,0.01095806]
[1767485914306,0.01106487,91264.0,91257.0,0.01095806]
[1767485914617,0.01095734,91263.0,91259.0,0.01095782]
[1767485914772,0.01095746,91262.0,91257.0,0.01095806]
[1767485915175,0.01095746,91262.0,91258.0,0.01095794]
[1767485915911,0.000999,91258.0,91256.0,0.01095818]
[1767485916124,0.00093008,91258.0,91256.0,0.01095818]
[1767485916278,0.0109577,91260.0,91255.0,0.0109583]
[1767485916279,0.01095782,91259.0,91255.0,0.0109583]
[1767485916498,0.01095782,91259.0,91253.0,0.01095854]
[1767485916691,0.01095782,91259.0,91254.0,0.06068475]
[1767485917167,0.01095794,91258.0,91253.0,0.01095854]
[1767485917307,0.04618462,91253.0,91237.0,0.01096046]
[1767485917485,0.01093,91254.0,91237.0,0.01096046]
[1767485917486,0.01095902,91249.0,91237.0,0.03316046]
[1767485917691,0.01095962,91244.0,91240.0,0.04972633]
[1767485917955,0.05479632,91247.0,91242.0,0.06068619]
[1767485917956,0.01095938,91246.0,91242.0,0.06068619]
[1767485918160,0.01095938,91246.0,91244.0,6.9e-05]
[1767485918408,0.01095938,91246.0,91242.0,0.04972633]
[1767485918409,0.01095878,91251.0,91242.0,0.06065519]
[1767485918617,0.0109583,91255.0,91251.0,0.01095878]
[1767485918817,0.01095842,91254.0,91251.0,0.04972633]
[1767485919187,0.0109577,91260.0,91253.0,0.06068487]
[1767485919401,0.01095782,91259.0,91255.0,0.06068463]
[1767485919727,0.0109577,91260.0,91255.0,0.06068463]
[1767485919932,0.01095758,91261.0,91257.0,0.01095806]
[1767485920293,0.01106487,91264.0,91259.0,0.01095782]
[1767485920516,0.00010765,91264.0,91260.0,0.0109577]
[1767485920944,0.01095734,91263.0,91258.0,0.01095794]
[1767485921096,0.000999,91260.0,91258.0,0.01095794]
[1767485921658,0.01095734,91263.0,91258.0,0.01095794]
[1767485921947,0.05489388,91264.0,91263.0,0.04972633]
[1767485922140,0.05489388,91264.0,91258.0,0.01095794]
[1767485922141,0.05478779,91262.0,91257.0,0.01095806]
[1767485922286,0.01195634,91263.0,91257.0,0.01095806]
[1767485922484,0.000999,91263.0,91260.0,0.0109577]
[1767485922746,0.00010765,91264.0,91256.0,0.06058332]
[1767485922747,0.01106487,91264.0,91256.0,0.06058332]
[1767485923048,0.01095758,91261.0,91256.0,0.06058332]
[1767485923247,0.01095758,91261.0,91257.0,0.01095806]
[1767485923758,0.01095758,91261.0,91255.0,0.02670724]
[1767485923912,0.01095746,91262.0,91258.0,0.04972633]
[1767485924545,0.01095746,91262.0,91257.0,0.01095806]
[1767485924718,0.01095746,91262.0,91257.0,0.06574804]
[1767485924924,0.01095734,91263.0,91257.0,0.06574804]
[1767485925126,0.01095746,91262.0,91256.0,0.01095818]
[1767485925327,0.01095746,91262.0,91255.0,0.06068463]
[1767485925507,0.01095746,91262.0,91258.0,0.01095794]
[1767485925710,0.01095746,91262.0,91258.0,0.06068427]
[1767485926545,0.01095758,91261.0,91258.0,0.04972633]
[1767485928031,0.000999,91258.0,91256.0,0.04972633]
[1767485928218,0.06575079,91254.0,91249.0,0.01095902]
[1767485928416,0.04618462,91253.0,91248.0,0.00479572]
[1767485928687,0.04618462,91253.0,91247.0,0.02261851]
[1767485928847,0.04618462,91253.0,91249.0,0.01095902]
[1767485929049,0.04618462,91253.0,91250.0,0.0109589]
[1767485929262,0.000999,91250.0,91244.0,0.01095962]
[1767485929461,0.05479398,91251.0,91245.0,0.0222]
[1767485929662,0.0109589,91250.0,91246.0,0.06068571]
[1767485929995,0.06575276,91251.0,91250.0,0.00065026]
[1767485931778,0.0109595,91245.0,91242.0,0.04972633]
[1767485932164,0.05451856,91243.0,91233.0,0.05480444]
[1767485932369,0.05007325,91243.0,91236.0,0.01096058]
[1767485932702,0.0109595,91245.0,91238.0,0.01096034]
[1767485932904,0.0109595,91245.0,91241.0,0.01095998]
[1767485933209,0.00996062,91244.0,91240.0,0.0109601]
[1767485933969,0.0109595,91245.0,91241.0,0.01095998]
[1767485934403,0.01095962,91244.0,91239.0,0.06068655]
[1767485934579,0.01095974,91243.0,91239.0,0.04972633]
[1767485934890,0.01095986,91242.0,91238.0,0.06068667]
[1767485935107,0.01095998,91241.0,91238.0,0.04972633]
[1767485935368,0.05714532,91235.0,91230.0,0.0109613]
[1767485935570,0.01096082,91234.0,91228.0,0.00570064]
[1767485935828,0.0657623,91238.0,91231.0,0.01096118]
[1767485935829,0.05480207,91238.0,91231.0,0.01096118]
[1767485935999,0.06576241,91238.0,91231.0,0.01096118]
[1767485936322,0.01096058,91236.0,91231.0,0.01096118]
[1767485936526,0.01096058,91236.0,91232.0,0.01096106]
[1767485936527,0.00651527,91236.0,91232.0,0.01096106]
[1767485936670,0.000999,91232.0,91231.0,6.892e-05]
[1767485936886,0.05580433,91232.0,91231.0,6.892e-05]
[1767485937085,0.05480533,91232.0,91231.0,6.892e-05]
[1767485937683,0.05480533,91232.0,91231.0,9.2e-07]
[1767485938508,0.01096262,91219.0,91214.0,0.01096322]
[1767485938710,0.01096226,91222.0,91217.0,0.04972633]
[1767485938711,0.01096238,91221.0,91217.0,0.04972633]
[1767485938928,0.0109619,91225.0,91219.0,0.06481262]
[1767485939132,0.01096202,91224.0,91219.0,0.01]
[1767485939287,0.01096202,91224.0,91219.0,0.05972633]
[1767485939710,0.01096202,91224.0,91219.0,0.07068895]
[1767485939910,0.01096106,91232.0,91221.0,0.0601543]
[1767485940308,0.01096106,91232.0,91223.0,0.01096214]
[1767485940513,0.01096154,91228.0,91224.0,0.04919192]
[1767485941058,0.06577058,91227.0,91224.0,0.04919192]
[1767485941261,0.01096214,91223.0,91217.0,0.01096286]
[1767485941423,0.01096214,91223.0,91218.0,0.04919192]
[1767485941631,0.01096226,91222.0,91218.0,0.06015466]
[1767485941877,0.05481434,91218.0,91216.0,1e-08]
[1767485942070,0.01096262,91219.0,91200.0,0.01096491]
[1767485942071,0.01096395,91208.0,91200.0,0.01096491]
[1767485942319,0.01096383,91209.0,91189.0,0.0222]
[1767485942588,0.0222,91212.0,91187.0,4.012e-05]
[1767485942589,0.04519345,91193.0,91187.0,0.01096623]
[1767485942789,0.01096611,91190.0,91185.0,0.01096671]
[1767485942997,0.01096659,91186.0,91183.0,0.0223383]
[1767485943214,0.01096611,91190.0,91183.0,0.0223383]
[1767485943215,0.05483117,91189.0,91183.0,0.0223383]
[1767485943360,0.01096659,91186.0,91183.0,0.0001383]
[1767485943557,0.06579956,91186.0,91183.0,0.0001383]
[1767485943781,0.06579956,91186.0,91175.0,0.05483912]
[1767485943782,0.05483662,91180.0,91175.0,0.01096791]
[1767485944037,0.01096719,91181.0,91172.0,0.05507265]
[1767485944038,0.01096719,91181.0,91178.0,0.00010745]
[1767485944236,0.01096587,91192.0,91187.0,0.01096647]
[1767485944441,0.03799455,91193.0,91192.0,0.000999]
[1767485944629,0.03316563,91194.0,91192.0,0.0009538]
[1767485945051,0.03316563,91194.0,91188.0,0.01096635]
[1767485945223,0.0222,91194.0,91189.0,0.01096623]
[1767485945423,0.03306563,91194.0,91190.0,0.01096611]
[1767485945623,0.05482612,91198.0,91190.0,0.01096611]
[1767485945624,0.01096479,91201.0,91197.0,0.01096527]
[1767485945828,0.01096479,91201.0,91195.0,0.01096551]
[1767485946030,0.01096431,91205.0,91201.0,0.000954]
[1767485946328,0.01096443,91204.0,91201.0,0.000954]
[1767485946525,0.01096431,91205.0,91201.0,0.000954]
[1767485946712,0.01096431,91205.0,91201.0,0.01096479]